[Event "Early-Titled-Tuesday-Blitz-September-12-2023"]
[Site "Chess.com"]
[Date "2023.09.12"]
[Round "7"]
[White "DKmirl"]
[Black "jcmesafischer"]
[Result "1-0"]
[WhiteElo "2271"]
[BlackElo "2375"]
[TimeControl "180+1"]
[EndTime "9:17:53 PDT"]
[Termination "DKmirl won by checkmate"]

1. d4 {[%clk 0:03:00.9]} 1... Nf6 {[%clk 0:02:47.2]} 2. Nf3 {[%clk 0:03:00.9]}
2... e6 {[%clk 0:02:45.8]} 3. g3 {[%clk 0:03:01.5]} 3... Be7 {[%clk 0:02:45.9]}
4. Bg2 {[%clk 0:03:02.2]} 4... O-O {[%clk 0:02:46.6]} 5. O-O {[%clk 0:03:02.8]}
5... d5 {[%clk 0:02:47.2]} 6. c4 {[%clk 0:03:02.6]} 6... dxc4 {[%clk 0:02:48.1]}
7. Nbd2 {[%clk 0:02:56]} 7... b5 {[%clk 0:02:30.8]} 8. a4 {[%clk 0:02:54]} 8...
c6 {[%clk 0:02:29]} 9. Qc2 {[%clk 0:02:15.5]} 9... Na6 {[%clk 0:02:02.3]} 10.
Ne5 {[%clk 0:02:10.4]} 10... Nb4 {[%clk 0:01:59]} 11. Qd1 {[%clk 0:01:51.5]}
11... Nfd5 {[%clk 0:00:59.8]} 12. e4 {[%clk 0:01:47]} 12... Nb6 {[%clk
0:00:54.4]} 13. a5 {[%clk 0:01:38.1]} 13... Na4 {[%clk 0:00:42]} 14. Ndxc4
{[%clk 0:01:26.9]} 14... f6 {[%clk 0:00:14.8]} 15. Ng4 {[%clk 0:01:11.9]} 15...
bxc4 {[%clk 0:00:09.7]} 16. Qxa4 {[%clk 0:01:10.8]} 16... Ba6 {[%clk 0:00:09.1]}
17. Rd1 {[%clk 0:01:06.1]} 17... Bb5 {[%clk 0:00:07.4]} 18. Qa3 {[%clk
0:01:05.6]} 18... Nc2 {[%clk 0:00:07.2]} 19. Qc3 {[%clk 0:01:03.5]} 19... Nxa1
{[%clk 0:00:06.9]} 20. d5 {[%clk 0:00:50.5]} 20... e5 {[%clk 0:00:05.4]} 21. Bf1
{[%clk 0:00:42.8]} 21... Nb3 {[%clk 0:00:05.2]} 22. Be3 {[%clk 0:00:42.6]} 22...
Qxa5 {[%clk 0:00:03.6]} 23. Qc2 {[%clk 0:00:38.1]} 23... cxd5 {[%clk 0:00:03.4]}
24. Rxd5 {[%clk 0:00:37.4]} 24... a6 {[%clk 0:00:02]} 25. Bxc4 {[%clk
0:00:35.2]} 25... Kh8 {[%clk 0:00:02.5]} 26. Bxb3 {[%clk 0:00:32.5]} 26... Rac8
{[%clk 0:00:02.9]} 27. Qd1 {[%clk 0:00:30.6]} 27... Rfd8 {[%clk 0:00:02.7]} 28.
Kg2 {[%clk 0:00:23.5]} 28... Qc7 {[%clk 0:00:02.5]} 29. h4 {[%clk 0:00:18.6]}
29... h5 {[%clk 0:00:02.2]} 30. Nh2 {[%clk 0:00:18.1]} 30... g6 {[%clk
0:00:02.8]} 31. Nf3 {[%clk 0:00:18.1]} 31... Rxd5 {[%clk 0:00:02.6]} 32. Qxd5
{[%clk 0:00:17.2]} 32... Bc6 {[%clk 0:00:02.4]} 33. Qf7 {[%clk 0:00:17.3]} 33...
Rg8 {[%clk 0:00:01.9]} 34. Qxg8# {[%clk 0:00:16.9]} 1-0

[Event "Early-Titled-Tuesday-Blitz-September-12-2023"]
[Site "Chess.com"]
[Date "2023.09.12"]
[Round "7"]
[White "LoaySameer"]
[Black "Mesa_1"]
[Result "1-0"]
[WhiteElo "2536"]
[BlackElo "2598"]
[TimeControl "180+1"]
[EndTime "9:17:56 PDT"]
[Termination "LoaySameer won on time"]

1. Nf3 {[%clk 0:03:00.9]} 1... Nf6 {[%clk 0:02:57.7]} 2. g3 {[%clk 0:03:01.2]}
2... g6 {[%clk 0:02:56.3]} 3. Bg2 {[%clk 0:03:01.4]} 3... Bg7 {[%clk 0:02:57.2]}
4. O-O {[%clk 0:03:02.1]} 4... O-O {[%clk 0:02:58.1]} 5. d3 {[%clk 0:03:02.7]}
5... c5 {[%clk 0:02:55]} 6. e4 {[%clk 0:03:02.2]} 6... Nc6 {[%clk 0:02:54.1]} 7.
c3 {[%clk 0:03:02.2]} 7... d6 {[%clk 0:02:53.5]} 8. Re1 {[%clk 0:03:02]} 8... e5
{[%clk 0:02:48.6]} 9. a3 {[%clk 0:03:01.6]} 9... a5 {[%clk 0:02:44.6]} 10. a4
{[%clk 0:03:01.9]} 10... h6 {[%clk 0:02:43.8]} 11. Na3 {[%clk 0:03:02.2]} 11...
Be6 {[%clk 0:02:24.9]} 12. Nb5 {[%clk 0:03:02.2]} 12... Re8 {[%clk 0:02:18.1]}
13. Nd2 {[%clk 0:02:55.6]} 13... d5 {[%clk 0:02:15.9]} 14. exd5 {[%clk
0:02:55.8]} 14... Bxd5 {[%clk 0:02:16.8]} 15. Bxd5 {[%clk 0:02:55.1]} 15... Nxd5
{[%clk 0:02:17.7]} 16. Nc4 {[%clk 0:02:54.9]} 16... Re6 {[%clk 0:01:56.2]} 17.
Ne3 {[%clk 0:02:34]} 17... Nde7 {[%clk 0:01:40]} 18. Nc4 {[%clk 0:02:27.3]}
18... Nd5 {[%clk 0:01:31.5]} 19. Qb3 {[%clk 0:02:25.5]} 19... Qd7 {[%clk
0:01:23.6]} 20. Be3 {[%clk 0:01:29.2]} 20... Bf8 {[%clk 0:01:15.5]} 21. Rad1
{[%clk 0:01:28.4]} 21... Rd8 {[%clk 0:01:11.9]} 22. Bc1 {[%clk 0:01:26.9]} 22...
Kh7 {[%clk 0:01:04.7]} 23. Ne3 {[%clk 0:01:21.1]} 23... Nde7 {[%clk 0:00:58.9]}
24. Nc4 {[%clk 0:01:17.8]} 24... Nd5 {[%clk 0:00:47.7]} 25. Qc2 {[%clk
0:01:10.4]} 25... Bg7 {[%clk 0:00:31.5]} 26. Qe2 {[%clk 0:01:09.2]} 26... f6
{[%clk 0:00:25.2]} 27. Qf3 {[%clk 0:01:09.2]} 27... Nce7 {[%clk 0:00:19.6]} 28.
h4 {[%clk 0:01:08]} 28... b6 {[%clk 0:00:18.7]} 29. h5 {[%clk 0:01:08]} 29... g5
{[%clk 0:00:19.2]} 30. d4 {[%clk 0:00:59.7]} 30... exd4 {[%clk 0:00:13.8]} 31.
cxd4 {[%clk 0:00:59.9]} 31... f5 {[%clk 0:00:13.2]} 32. dxc5 {[%clk 0:00:55.1]}
32... Rxe1+ {[%clk 0:00:12.4]} 33. Rxe1 {[%clk 0:00:55.6]} 33... bxc5 {[%clk
0:00:13.2]} 34. Ne5 {[%clk 0:00:43.7]} 34... Qe6 {[%clk 0:00:13.1]} 35. Nd3
{[%clk 0:00:44.1]} 35... Qb6 {[%clk 0:00:09.7]} 36. b3 {[%clk 0:00:42.1]} 36...
Qc6 {[%clk 0:00:08.2]} 37. Ne5 {[%clk 0:00:39.5]} 37... Qe6 {[%clk 0:00:07.1]}
38. Nd3 {[%clk 0:00:39.8]} 38... Qc6 {[%clk 0:00:07.3]} 39. Ba3 {[%clk
0:00:40.2]} 39... Rd7 {[%clk 0:00:06.1]} 40. Nxc5 {[%clk 0:00:39.7]} 40... Rd8
{[%clk 0:00:04.3]} 41. Re6 {[%clk 0:00:39.4]} 41... Qc8 {[%clk 0:00:03.5]} 42.
Nd6 {[%clk 0:00:38.5]} 42... Qc6 {[%clk 0:00:02.4]} 43. Nxf5 {[%clk 0:00:38.8]}
1-0

[Event "Early-Titled-Tuesday-Blitz-September-12-2023"]
[Site "Chess.com"]
[Date "2023.09.12"]
[Round "7"]
[White "NicolaiMaxime"]
[Black "Witik"]
[Result "1-0"]
[WhiteElo "2563"]
[BlackElo "2729"]
[TimeControl "180+1"]
[EndTime "9:17:57 PDT"]
[Termination "NicolaiMaxime won on time"]

1. e4 {[%clk 0:02:59.5]} 1... c6 {[%clk 0:03:00.3]} 2. d4 {[%clk 0:02:58.9]}
2... d5 {[%clk 0:03:00.9]} 3. exd5 {[%clk 0:02:59.8]} 3... cxd5 {[%clk
0:03:01.3]} 4. Nf3 {[%clk 0:03:00.7]} 4... Nc6 {[%clk 0:03:00.8]} 5. Bb5 {[%clk
0:03:00.7]} 5... Bg4 {[%clk 0:03:00.3]} 6. O-O {[%clk 0:03:00.3]} 6... e6 {[%clk
0:02:59.8]} 7. h3 {[%clk 0:03:00.4]} 7... Bh5 {[%clk 0:02:35.1]} 8. Bf4 {[%clk
0:02:58.8]} 8... Bd6 {[%clk 0:02:31]} 9. Bxc6+ {[%clk 0:02:58.4]} 9... bxc6
{[%clk 0:02:30.9]} 10. Bxd6 {[%clk 0:02:59.3]} 10... Qxd6 {[%clk 0:02:31.8]} 11.
Nbd2 {[%clk 0:03:00]} 11... Nf6 {[%clk 0:02:19.2]} 12. Nb3 {[%clk 0:02:58.5]}
12... Ne4 {[%clk 0:02:17.1]} 13. Qd3 {[%clk 0:02:56]} 13... O-O {[%clk
0:02:14.5]} 14. Nfd2 {[%clk 0:02:55.4]} 14... Nf6 {[%clk 0:02:04.8]} 15. Nc5
{[%clk 0:02:54]} 15... Rfe8 {[%clk 0:01:53.2]} 16. c3 {[%clk 0:02:40.7]} 16...
a5 {[%clk 0:01:48.5]} 17. Rfe1 {[%clk 0:02:40.5]} 17... a4 {[%clk 0:01:37.3]}
18. b4 {[%clk 0:02:36.5]} 18... Bg6 {[%clk 0:01:32.1]} 19. Qe3 {[%clk
0:02:20.8]} 19... Re7 {[%clk 0:01:13.3]} 20. a3 {[%clk 0:02:16.5]} 20... Ne8
{[%clk 0:01:11.2]} 21. c4 {[%clk 0:02:08.7]} 21... Nc7 {[%clk 0:01:06.5]} 22.
cxd5 {[%clk 0:01:55.6]} 22... cxd5 {[%clk 0:00:56.6]} 23. Rec1 {[%clk
0:01:54.5]} 23... Nb5 {[%clk 0:00:51.3]} 24. Nf3 {[%clk 0:01:54.2]} 24... f6
{[%clk 0:00:51.1]} 25. Nh4 {[%clk 0:01:34]} 25... Bf7 {[%clk 0:00:48.9]} 26. Nf3
{[%clk 0:01:26.9]} 26... e5 {[%clk 0:00:41.7]} 27. dxe5 {[%clk 0:01:20.3]} 27...
fxe5 {[%clk 0:00:41.7]} 28. Re1 {[%clk 0:01:21]} 28... Rae8 {[%clk 0:00:34.9]}
29. Nxa4 {[%clk 0:01:20.8]} 29... Qf6 {[%clk 0:00:20.2]} 30. Nc5 {[%clk
0:01:19.4]} 30... e4 {[%clk 0:00:18.7]} 31. Nh2 {[%clk 0:01:14.7]} 31... d4
{[%clk 0:00:18.5]} 32. Qg3 {[%clk 0:01:11.1]} 32... Nc3 {[%clk 0:00:18.5]} 33.
Ng4 {[%clk 0:01:08.6]} 33... Qg6 {[%clk 0:00:17.6]} 34. Rac1 {[%clk 0:00:59.2]}
34... h5 {[%clk 0:00:17.5]} 35. Nh2 {[%clk 0:00:50.7]} 35... Qxg3 {[%clk
0:00:17.7]} 36. fxg3 {[%clk 0:00:51.6]} 36... Nd5 {[%clk 0:00:07.8]} 37. Nf1
{[%clk 0:00:49]} 37... d3 {[%clk 0:00:04.9]} 38. Rc4 {[%clk 0:00:45.2]} 38...
Bg6 {[%clk 0:00:03.6]} 39. Rd4 {[%clk 0:00:44.7]} 39... Nb6 {[%clk 0:00:03.9]}
40. Nd2 {[%clk 0:00:44.2]} 40... Ra8 {[%clk 0:00:03.1]} 41. Ndxe4 {[%clk
0:00:40.5]} 41... Rxa3 {[%clk 0:00:02.1]} 42. Rd8+ {[%clk 0:00:40.1]} 1-0

[Event "Early-Titled-Tuesday-Blitz-September-12-2023"]
[Site "Chess.com"]
[Date "2023.09.12"]
[Round "7"]
[White "Triumphmate"]
[Black "AndresDelgado77"]
[Result "1-0"]
[WhiteElo "2510"]
[BlackElo "2309"]
[TimeControl "180+1"]
[EndTime "9:17:57 PDT"]
[Termination "Triumphmate won on time"]

1. e4 {[%clk 0:03:00.9]} 1... e6 {[%clk 0:02:59.6]} 2. d4 {[%clk 0:03:00.8]}
2... d5 {[%clk 0:02:59.4]} 3. exd5 {[%clk 0:03:00.2]} 3... exd5 {[%clk
0:02:59.2]} 4. Bd3 {[%clk 0:03:01.1]} 4... Nc6 {[%clk 0:02:58.5]} 5. Nf3 {[%clk
0:03:02]} 5... Bg4 {[%clk 0:02:56.4]} 6. O-O {[%clk 0:03:01.9]} 6... Bxf3 {[%clk
0:02:47.8]} 7. Qxf3 {[%clk 0:03:02.8]} 7... Nxd4 {[%clk 0:02:47]} 8. Re1+ {[%clk
0:03:00]} 8... Ne6 {[%clk 0:02:41]} 9. c4 {[%clk 0:02:53.8]} 9... Bb4 {[%clk
0:02:20.7]} 10. Nc3 {[%clk 0:02:48.7]} 10... Ne7 {[%clk 0:01:11.7]} 11. cxd5
{[%clk 0:02:39.7]} 11... Nxd5 {[%clk 0:01:04.3]} 12. Rxe6+ {[%clk 0:01:57.8]}
12... fxe6 {[%clk 0:01:01.4]} 13. Qh5+ {[%clk 0:01:58.5]} 13... Kf8 {[%clk
0:00:46.7]} 14. Ne4 {[%clk 0:01:32.4]} 14... Nf6 {[%clk 0:00:45.2]} 15. Qf3
{[%clk 0:01:00]} 15... Qd5 {[%clk 0:00:44.5]} 16. Bg5 {[%clk 0:00:48.5]} 16...
Be7 {[%clk 0:00:31.7]} 17. Rd1 {[%clk 0:00:44.7]} 17... Rd8 {[%clk 0:00:24.1]}
18. h4 {[%clk 0:00:09.5]} 18... h6 {[%clk 0:00:19.3]} 19. Bxf6 {[%clk
0:00:09.4]} 19... gxf6 {[%clk 0:00:16.3]} 20. Bc2 {[%clk 0:00:07.8]} 20... Qf5
{[%clk 0:00:11.4]} 21. Rxd8+ {[%clk 0:00:05.6]} 21... Bxd8 {[%clk 0:00:11.5]}
22. Qa3+ {[%clk 0:00:06.2]} 22... Be7 {[%clk 0:00:09.7]} 23. Qxa7 {[%clk
0:00:06.2]} 23... Rg8 {[%clk 0:00:04.7]} 24. Qb8+ {[%clk 0:00:03]} 24... Kg7
{[%clk 0:00:04.3]} 25. Qxc7 {[%clk 0:00:02.8]} 1-0

[Event "Early-Titled-Tuesday-Blitz-September-12-2023"]
[Site "Chess.com"]
[Date "2023.09.12"]
[Round "7"]
[White "Parhamov"]
[Black "dropstoneDP"]
[Result "1-0"]
[WhiteElo "3117"]
[BlackElo "3017"]
[TimeControl "180+1"]
[EndTime "9:17:58 PDT"]
[Termination "Parhamov won by resignation"]

1. c4 {[%clk 0:03:00.9]} 1... e6 {[%clk 0:02:54.8]} 2. Nc3 {[%clk 0:02:58.1]}
2... d5 {[%clk 0:02:55]} 3. d4 {[%clk 0:02:58]} 3... Nf6 {[%clk 0:02:54.6]} 4.
cxd5 {[%clk 0:02:58.4]} 4... Nxd5 {[%clk 0:02:55.5]} 5. e4 {[%clk 0:02:58.2]}
5... Nxc3 {[%clk 0:02:56]} 6. bxc3 {[%clk 0:02:58.8]} 6... c5 {[%clk 0:02:56.9]}
7. Rb1 {[%clk 0:02:58]} 7... Be7 {[%clk 0:02:57.3]} 8. Nf3 {[%clk 0:02:54.7]}
8... O-O {[%clk 0:02:57.9]} 9. h4 {[%clk 0:02:52]} 9... b6 {[%clk 0:02:58.5]}
10. Rh3 {[%clk 0:02:41.7]} 10... Nd7 {[%clk 0:02:47.8]} 11. Bd3 {[%clk
0:02:39.8]} 11... cxd4 {[%clk 0:02:46.5]} 12. cxd4 {[%clk 0:02:39.5]} 12... e5
{[%clk 0:02:47.2]} 13. Rg3 {[%clk 0:02:33.1]} 13... Bxh4 {[%clk 0:02:46.2]} 14.
Nxh4 {[%clk 0:02:32.3]} 14... Qxh4 {[%clk 0:02:47.1]} 15. Rh3 {[%clk 0:02:26.6]}
15... Qe7 {[%clk 0:02:37.9]} 16. Rg3 {[%clk 0:02:02.2]} 16... Re8 {[%clk
0:02:03.7]} 17. d5 {[%clk 0:01:26.2]} 17... Nc5 {[%clk 0:01:56.3]} 18. Bh6
{[%clk 0:01:25]} 18... g6 {[%clk 0:01:54.7]} 19. Qf3 {[%clk 0:01:18.8]} 19... f5
{[%clk 0:01:14.5]} 20. d6 {[%clk 0:01:18.1]} 20... Qxd6 {[%clk 0:01:04.8]} 21.
Bc4+ {[%clk 0:01:17.9]} 21... Be6 {[%clk 0:00:59.4]} 22. Bxe6+ {[%clk
0:01:17.8]} 22... Nxe6 {[%clk 0:00:44.9]} 23. exf5 {[%clk 0:01:18.7]} 23... Nd4
{[%clk 0:00:45.4]} 24. Qe4 {[%clk 0:01:00.6]} 24... Qc6 {[%clk 0:00:34.5]} 25.
Qxc6 {[%clk 0:01:00.6]} 25... Nxc6 {[%clk 0:00:35.4]} 26. fxg6 {[%clk
0:00:56.2]} 26... Nd4 {[%clk 0:00:35.3]} 27. gxh7+ {[%clk 0:00:44.4]} 27... Kxh7
{[%clk 0:00:36.2]} 28. Be3 {[%clk 0:00:45.1]} 28... Rg8 {[%clk 0:00:34.6]} 29.
Rxg8 {[%clk 0:00:43]} 29... Rxg8 {[%clk 0:00:34.4]} 30. Bxd4 {[%clk 0:00:43.5]}
30... exd4 {[%clk 0:00:35.3]} 31. g3 {[%clk 0:00:44.1]} 31... Rg5 {[%clk
0:00:34.3]} 32. Rb4 {[%clk 0:00:38.4]} 32... Rd5 {[%clk 0:00:15]} 33. Kd2 {[%clk
0:00:38.1]} 33... Rf5 {[%clk 0:00:11.2]} 34. f4 {[%clk 0:00:36.9]} 34... Rh5
{[%clk 0:00:11.8]} 35. Rxd4 {[%clk 0:00:33.6]} 35... Rh2+ {[%clk 0:00:12]} 36.
Ke3 {[%clk 0:00:34.2]} 36... Rxa2 {[%clk 0:00:12.9]} 37. g4 {[%clk 0:00:34.9]}
37... b5 {[%clk 0:00:10]} 38. f5 {[%clk 0:00:34.5]} 38... Ra3+ {[%clk 0:00:08]}
39. Ke4 {[%clk 0:00:31.6]} 39... Ra4 {[%clk 0:00:08]} 40. Rxa4 {[%clk
0:00:31.3]} 1-0

[Event "Early-Titled-Tuesday-Blitz-September-12-2023"]
[Site "Chess.com"]
[Date "2023.09.12"]
[Round "7"]
[White "Aygehovit1992"]
[Black "TatjanaVasilevich"]
[Result "1-0"]
[WhiteElo "2723"]
[BlackElo "2547"]
[TimeControl "180+1"]
[EndTime "9:18:00 PDT"]
[Termination "Aygehovit1992 won by checkmate"]

1. e4 {[%clk 0:03:00.9]} 1... c5 {[%clk 0:02:52.7]} 2. Nc3 {[%clk 0:03:00.2]}
2... e6 {[%clk 0:02:51.9]} 3. g3 {[%clk 0:02:58.5]} 3... Nc6 {[%clk 0:02:51.8]}
4. Bg2 {[%clk 0:02:58.5]} 4... g6 {[%clk 0:02:52.2]} 5. d3 {[%clk 0:02:57.2]}
5... Bg7 {[%clk 0:02:52.7]} 6. h4 {[%clk 0:02:50.1]} 6... h5 {[%clk 0:02:52.3]}
7. Nh3 {[%clk 0:02:48.8]} 7... Rb8 {[%clk 0:02:46.6]} 8. Bg5 {[%clk 0:02:45.8]}
8... Nge7 {[%clk 0:02:42.5]} 9. Qd2 {[%clk 0:02:44.5]} 9... b5 {[%clk
0:02:40.6]} 10. O-O {[%clk 0:02:40.3]} 10... d6 {[%clk 0:02:40.6]} 11. Rae1
{[%clk 0:02:31.3]} 11... Nd4 {[%clk 0:02:40.7]} 12. Nd1 {[%clk 0:02:25.2]} 12...
b4 {[%clk 0:02:36.5]} 13. c3 {[%clk 0:02:25.2]} 13... bxc3 {[%clk 0:02:36.4]}
14. bxc3 {[%clk 0:02:26.1]} 14... Ndc6 {[%clk 0:02:37.1]} 15. e5 {[%clk
0:02:17.1]} 15... d5 {[%clk 0:02:33.9]} 16. c4 {[%clk 0:02:06]} 16... Qd7 {[%clk
0:02:26.1]} 17. cxd5 {[%clk 0:02:01]} 17... Nxd5 {[%clk 0:02:25.7]} 18. Nf4
{[%clk 0:01:51.5]} 18... Nxf4 {[%clk 0:02:18.1]} 19. Qxf4 {[%clk 0:01:52.4]}
19... Nd4 {[%clk 0:02:17.8]} 20. Ne3 {[%clk 0:01:52.1]} 20... Bb7 {[%clk
0:02:11.9]} 21. Bf6 {[%clk 0:01:36]} 21... O-O {[%clk 0:02:11]} 22. g4 {[%clk
0:01:33.7]} 22... Bxg2 {[%clk 0:02:10.5]} 23. Kxg2 {[%clk 0:01:33.7]} 23... Qc6+
{[%clk 0:02:10.6]} 24. Kg3 {[%clk 0:01:24.5]} 24... Rb2 {[%clk 0:01:55.2]} 25.
gxh5 {[%clk 0:01:22.1]} 25... Ne2+ {[%clk 0:01:20.8]} 26. Rxe2 {[%clk 0:01:21]}
26... Rxe2 {[%clk 0:01:21.5]} 27. h6 {[%clk 0:01:09.6]} 27... Bh8 {[%clk
0:01:04.9]} 28. Bxh8 {[%clk 0:01:08.3]} 28... f5 {[%clk 0:01:05.3]} 29. Bg7
{[%clk 0:01:00.4]} 29... Rf7 {[%clk 0:01:04.3]} 30. Rb1 {[%clk 0:00:58.4]} 30...
Rb7 {[%clk 0:01:00.4]} 31. Rxb7 {[%clk 0:00:52.4]} 31... Qxb7 {[%clk 0:01:00.6]}
32. Qg5 {[%clk 0:00:49.8]} 32... Kf7 {[%clk 0:00:34.6]} 33. Qf6+ {[%clk
0:00:47.6]} 33... Ke8 {[%clk 0:00:32.3]} 34. Qxe6+ {[%clk 0:00:47.7]} 34... Kd8
{[%clk 0:00:32.2]} 35. Bf6+ {[%clk 0:00:46.5]} 35... Kc7 {[%clk 0:00:32.2]} 36.
Nd5+ {[%clk 0:00:46.3]} 36... Kb8 {[%clk 0:00:31.9]} 37. Qd6+ {[%clk 0:00:41.9]}
37... Ka8 {[%clk 0:00:32.2]} 38. Qd8+ {[%clk 0:00:35.3]} 38... Qb8 {[%clk
0:00:32.2]} 39. Qxb8+ {[%clk 0:00:35.5]} 39... Kxb8 {[%clk 0:00:32.6]} 40. h7
{[%clk 0:00:36]} 40... Kb7 {[%clk 0:00:31.5]} 41. h8=Q {[%clk 0:00:35.8]} 41...
Rd2 {[%clk 0:00:32.1]} 42. Nf4 {[%clk 0:00:33.2]} 42... Rxa2 {[%clk 0:00:31.3]}
43. Qg7+ {[%clk 0:00:33.1]} 43... Ka6 {[%clk 0:00:31.6]} 44. Qxg6 {[%clk
0:00:34]} 44... Rb2 {[%clk 0:00:31.8]} 45. e6 {[%clk 0:00:33.7]} 45... Kb5
{[%clk 0:00:29.3]} 46. Bxb2 {[%clk 0:00:33.2]} 46... a5 {[%clk 0:00:30]} 47. e7
{[%clk 0:00:34.1]} 47... Kb4 {[%clk 0:00:30.5]} 48. e8=Q {[%clk 0:00:34]} 48...
Kb3 {[%clk 0:00:31.1]} 49. Qb5+ {[%clk 0:00:33.3]} 49... Kc2 {[%clk 0:00:31.4]}
50. Qxf5 {[%clk 0:00:33.5]} 50... a4 {[%clk 0:00:29.5]} 51. Qfxc5+ {[%clk
0:00:33.8]} 51... Kd1 {[%clk 0:00:29.1]} 52. Qc1# {[%clk 0:00:33.1]} 1-0

[Event "Early-Titled-Tuesday-Blitz-September-12-2023"]
[Site "Chess.com"]
[Date "2023.09.12"]
[Round "7"]
[White "VSanduleac"]
[Black "AradNazari"]
[Result "0-1"]
[WhiteElo "2542"]
[BlackElo "2738"]
[TimeControl "180+1"]
[EndTime "9:18:05 PDT"]
[Termination "AradNazari won by resignation"]

1. e4 {[%clk 0:03:00.9]} 1... e6 {[%clk 0:02:57.5]} 2. Qe2 {[%clk 0:03:00.2]}
2... Nc6 {[%clk 0:02:51.6]} 3. Nf3 {[%clk 0:02:59.4]} 3... Bc5 {[%clk 0:02:42]}
4. c3 {[%clk 0:02:59]} 4... e5 {[%clk 0:02:40.1]} 5. b4 {[%clk 0:02:55.4]} 5...
Bd6 {[%clk 0:02:36.9]} 6. d3 {[%clk 0:02:54.4]} 6... Nf6 {[%clk 0:02:28.8]} 7.
Nbd2 {[%clk 0:02:54.8]} 7... O-O {[%clk 0:02:15.7]} 8. Nc4 {[%clk 0:02:54.6]}
8... b5 {[%clk 0:02:12.9]} 9. Nxd6 {[%clk 0:02:53.1]} 9... cxd6 {[%clk
0:02:13.8]} 10. a4 {[%clk 0:02:46]} 10... bxa4 {[%clk 0:02:10.1]} 11. Rxa4
{[%clk 0:02:39.7]} 11... Qb6 {[%clk 0:02:04.8]} 12. Be3 {[%clk 0:02:37.2]} 12...
Qb5 {[%clk 0:02:05.4]} 13. Qa2 {[%clk 0:02:35.3]} 13... d5 {[%clk 0:01:57.7]}
14. d4 {[%clk 0:02:32.4]} 14... Qb8 {[%clk 0:01:39.9]} 15. exd5 {[%clk 0:02:30]}
15... exd4 {[%clk 0:01:40.3]} 16. Nxd4 {[%clk 0:02:28.2]} 16... Nxd4 {[%clk
0:01:40.2]} 17. Bxd4 {[%clk 0:02:28.3]} 17... Qf4 {[%clk 0:01:10.5]} 18. Qd2
{[%clk 0:02:09.5]} 18... Qe4+ {[%clk 0:01:06]} 19. Be2 {[%clk 0:02:04.5]} 19...
Qxg2 {[%clk 0:01:06.3]} 20. Rf1 {[%clk 0:01:55.3]} 20... Nxd5 {[%clk 0:01:02.2]}
21. Qd3 {[%clk 0:01:37.2]} 21... Re8 {[%clk 0:00:42.7]} 22. Kd1 {[%clk
0:01:25.3]} 22... Nf4 {[%clk 0:00:33.3]} 23. Qf3 {[%clk 0:01:24]} 23... Qg6
{[%clk 0:00:13.9]} 24. Qxf4 {[%clk 0:01:18.8]} 24... Qb1+ {[%clk 0:00:13.5]} 25.
Qc1 {[%clk 0:01:18.3]} 25... Qxc1+ {[%clk 0:00:05.1]} 26. Kxc1 {[%clk
0:01:17.7]} 26... Rxe2 {[%clk 0:00:05.8]} 27. Rxa7 {[%clk 0:01:16.2]} 27... Rxa7
{[%clk 0:00:06.3]} 28. Bxa7 {[%clk 0:01:16.2]} 28... Ba6 {[%clk 0:00:07]} 29.
Rg1 {[%clk 0:01:15.3]} 29... f6 {[%clk 0:00:07.2]} 30. Bd4 {[%clk 0:01:14.8]}
30... Bc4 {[%clk 0:00:06.5]} 31. Rg3 {[%clk 0:01:13.1]} 31... Kf7 {[%clk
0:00:06.5]} 32. h3 {[%clk 0:01:11.9]} 32... d5 {[%clk 0:00:06.5]} 33. Be3 {[%clk
0:00:57.4]} 33... Ra2 {[%clk 0:00:05.7]} 34. Kb1 {[%clk 0:00:56.4]} 34... Re2
{[%clk 0:00:05.5]} 35. Rg4 {[%clk 0:00:47.8]} 35... h5 {[%clk 0:00:05.4]} 36.
Rd4 {[%clk 0:00:47]} 36... g5 {[%clk 0:00:05.1]} 37. h4 {[%clk 0:00:46.5]} 37...
g4 {[%clk 0:00:04.7]} 38. Rf4 {[%clk 0:00:45.5]} 38... g3 {[%clk 0:00:04.6]} 39.
Bd4 {[%clk 0:00:36.7]} 39... g2 {[%clk 0:00:04.9]} 40. f3 {[%clk 0:00:31.3]}
40... Re1+ {[%clk 0:00:04.4]} 41. Kc2 {[%clk 0:00:31.9]} 41... g1=Q {[%clk
0:00:05]} 42. Rxf6+ {[%clk 0:00:31.3]} 42... Ke7 {[%clk 0:00:05]} 43. Bxg1
{[%clk 0:00:30.5]} 43... Kxf6 {[%clk 0:00:05.7]} 44. Bd4+ {[%clk 0:00:29.9]}
44... Kf5 {[%clk 0:00:06.3]} 0-1

[Event "Early-Titled-Tuesday-Blitz-September-12-2023"]
[Site "Chess.com"]
[Date "2023.09.12"]
[Round "7"]
[White "FoxOnTheRun97"]
[Black "kingofthenil"]
[Result "0-1"]
[WhiteElo "2566"]
[BlackElo "2755"]
[TimeControl "180+1"]
[EndTime "9:18:07 PDT"]
[Termination "kingofthenil won on time"]

1. d4 {[%clk 0:03:00.9]} 1... Nc6 {[%clk 0:02:56.9]} 2. g3 {[%clk 0:02:57.6]}
2... e5 {[%clk 0:02:57]} 3. d5 {[%clk 0:02:57.2]} 3... Nce7 {[%clk 0:02:57.4]}
4. e4 {[%clk 0:02:56.4]} 4... f5 {[%clk 0:02:57.5]} 5. f4 {[%clk 0:02:36.9]}
5... fxe4 {[%clk 0:02:44.1]} 6. fxe5 {[%clk 0:02:34.8]} 6... Ng6 {[%clk
0:02:43.8]} 7. Qd4 {[%clk 0:02:25.3]} 7... Qe7 {[%clk 0:02:39.4]} 8. Bf4 {[%clk
0:02:10.1]} 8... Nxf4 {[%clk 0:01:21.6]} 9. gxf4 {[%clk 0:02:11]} 9... g5 {[%clk
0:01:22.4]} 10. Qxe4 {[%clk 0:01:26.2]} 10... gxf4 {[%clk 0:01:20.3]} 11. Nf3
{[%clk 0:01:23.9]} 11... Nf6 {[%clk 0:01:17.1]} 12. Qd4 {[%clk 0:01:09]} 12...
Ng4 {[%clk 0:01:16.7]} 13. Qxf4 {[%clk 0:00:51.6]} 13... h5 {[%clk 0:01:16.4]}
14. Nc3 {[%clk 0:00:47.4]} 14... Bg7 {[%clk 0:01:07.6]} 15. Bd3 {[%clk
0:00:42.7]} 15... Nxe5 {[%clk 0:01:05]} 16. Nxe5 {[%clk 0:00:39.3]} 16... Bxe5
{[%clk 0:01:05.9]} 17. Qe4 {[%clk 0:00:28.7]} 17... d6 {[%clk 0:01:06.1]} 18.
O-O-O {[%clk 0:00:24.4]} 18... Bg4 {[%clk 0:01:06.5]} 19. Rde1 {[%clk
0:00:24.2]} 19... O-O-O {[%clk 0:01:06.5]} 20. Qc4 {[%clk 0:00:18.1]} 20... Kb8
{[%clk 0:01:05.2]} 21. Kb1 {[%clk 0:00:17.8]} 21... Rdf8 {[%clk 0:00:57.3]} 22.
h3 {[%clk 0:00:16.9]} 22... Bd7 {[%clk 0:00:52.9]} 23. a4 {[%clk 0:00:17.1]}
23... Rhg8 {[%clk 0:00:39.4]} 24. a5 {[%clk 0:00:16.6]} 24... a6 {[%clk
0:00:39.4]} 25. Qb4 {[%clk 0:00:14.8]} 25... Ka7 {[%clk 0:00:36.3]} 26. Re4
{[%clk 0:00:09.3]} 26... Qg5 {[%clk 0:00:22.3]} 27. Rhe1 {[%clk 0:00:09]} 27...
Rf4 {[%clk 0:00:16.5]} 28. Rxf4 {[%clk 0:00:07.4]} 28... Qxf4 {[%clk 0:00:17.4]}
29. Re4 {[%clk 0:00:07.3]} 29... Qf2 {[%clk 0:00:15.6]} 30. Rc4 {[%clk
0:00:06.1]} 30... Rc8 {[%clk 0:00:11.8]} 31. Qb3 {[%clk 0:00:05.3]} 31... Bxh3
{[%clk 0:00:10.4]} 32. Rb4 {[%clk 0:00:05.1]} 32... Rb8 {[%clk 0:00:06.4]} 33.
Qc4 {[%clk 0:00:04.1]} 33... Qg1+ {[%clk 0:00:04.2]} 34. Ka2 {[%clk 0:00:04]}
34... Qc5 {[%clk 0:00:05.1]} 35. Qh4 {[%clk 0:00:01.2]} 35... Bg4 {[%clk
0:00:03.4]} 0-1